[Event "87th Spanish Championship 2022"]
[Site "Linares"]
[Date "2022.08.12"]
[Round "2.28"]
[White "Garcia Ramos, Daniel"]
[Black "Rodriguez Lopez, Rafael"]
[Result "0-1"]
[ECO "E62"]
[WhiteElo "2438"]
[BlackElo "2172"]
[Annotator "TA"]
[PlyCount "103"]
[EventDate "2022.08.11"]
[EventType "swiss"]
[EventCountry "ESP"]
[SourceTitle "playchess.com"]
[Source "ChessBase"]
[SourceQuality "1"]
[TimeControl "5400+30"]

{[%evp 15,103,54,48,20,15,15,6,0,26,5,7,-4,16,-36,-11,-118,-124,-162,-129,-166,-176,-177,-179,-291,-133,-121,-125,-123,-120,-172,-136,-204,-200,-250,-210,-203,-176,-202,-188,-181,-143,-245,-211,-277,-273,-520,-256,-248,-254,-253,-255,-536,-536,-536,-536,-501,-527,-505,-491,-481,-465,-451,-421,-414,-254,-529,-506,-483,-468,-772,-764,-4672,-3495,-2389,-2113,-2113,-4405,-2325,-2252,-3424,-2795,-1776,-1993,-8383,-7804,-29947,-6215,-6079,-5197,-1232]} 1. c4 {[%emt 0:00:01]} Nf6 {[%emt 0:00:57]} 2. Nf3 {[%emt 0:00:07]} g6 {[%emt 0:00:57]} 3. g3 {[%emt 0:00:05]} Bg7 {[%emt 0:00:20]} 4. Bg2 {[%emt 0:00:05]} O-O {[%emt 0:01:01]} 5. O-O {[%emt 0:00:05]} d6 {[%emt 0:00:11]} 6. d4 {[%emt 0:00:10]} Nc6 {[%emt 0:00:32]} 7. Nc3 {[%emt 0:00:07]} e5 {[%emt 0:00:19]} 8. d5 {[%emt 0:00:10]} Nb8 {[%emt 0:00:06][%cal Bc6b8,Bb8a6,Ba6c5,Bc5b3][%mdl 32] is now debated instead of 8...Ne7.} 9. c5 {[%emt 0:00:07] E62: King's Indian: Fianchetto: 6...c6 and Panno Variation (6...Nc6) without ...a6.} Na6 {[%emt 0:00:13]} 10. cxd6 {[%emt 0:00:15]} cxd6 {[%emt 0:00:05]} 11. e4 {[%emt 0:05:01] The position is equal.} Bd7 {[%emt 0:02:45]} (11... b5 $5) 12. Qe2 {[%emt 0:08:36]} Nc5 {[%emt 0:01:20] [#]} 13. Ne1 $146 {[%emt 0:01:39]} ({Predecessor:} 13. Nd2 Rb8 14. b4 Na4 15. Nxa4 Bxa4 16. Bb2 Qb6 17. a3 Bb5 18. Nc4 Qa6 19. Rfc1 Rfc8 20. Bf1 Bxc4 21. Rxc4 Rxc4 22. Qxc4 Qxc4 23. Bxc4 Nxe4 {0-1 (43) Lakshmi,C (1989)-Hjartarson,J (2470) Chess.com INT 2022}) 13... a5 {[%emt 0:02:30][%cal Ob7b5]} 14. b3 {[%emt 0:05:25]} (14. Nd3 $11) 14... b5 {[%emt 0:06:05] Strongly threatening ...b4.} 15. Nxb5 {[%emt 0:37:23] [#]} (15. Nd3 $11) 15... Nfxe4 $1 $17 {[%emt 0:03:05][%mdl 512]} 16. Be3 {[%emt 0:00:35]} (16. Nc2 f5) 16... Qb8 {[%emt 0:01:54]} 17. a4 {[%emt 0:08:25]} Nxb3 {[%emt 0:07:34]} 18. Ra3 {[%emt 0:02:40]} Nbc5 {[%emt 0:00:59][%cal Oc5a4]} 19. Nd3 {[%emt 0:11:17] [#]} (19. Bxe4 $142 Nxe4 20. Ng2) 19... Bxb5 {[%emt 0:14:03]} (19... Nxa4 $1 $19 {[%mdl 512] has better winning chances.} 20. Rxa4 (20. Rb1 Nac3) 20... f5) 20. axb5 {[%emt 0:00:07]} Qxb5 {[%emt 0:00:31]} 21. Re1 {[%emt 0:00:30]} Nxd3 {[%emt 0:02:54]} 22. Rxd3 {[%emt 0:03:23]} (22. Qxd3 $17 Qxd3 23. Rxd3) 22... Nc5 {[%emt 0:00:45]} 23. Ra3 {[%emt 0:00:08] [#]} (23. Rc3 $17 Rfb8 24. Qxb5 Rxb5 25. Bxc5 Rxc5 26. Rxc5 dxc5 27. d6) 23... Qb4 $1 $19 {[%emt 0:03:31]} 24. Ra2 {[%emt 0:03:35]} Nb3 {[%emt 0:00:33] Against Rc1} 25. Rb1 {[%emt 0:02:13]} Rfb8 {[%emt 0:01:44]} 26. Qc2 {[%emt 0:03:44]} a4 {[%emt 0:00:43][%cal Ba5a4,Ba4a3][%mdl 32]} 27. Bf1 {[%emt 0:00:11]} e4 {[%emt 0:06:24]} 28. Qc6 {[%emt 0:01:29]} (28. Bc4 $17 {was necessary.}) 28... Be5 {[%emt 0:20:28]} 29. Ba6 {[%emt 0:00:32]} a3 {[%emt 0:02:35]} 30. Bd2 $2 {[%emt 0:03:28] [#]} (30. Kg2) 30... Nd4 $1 {[%emt 0:00:50]} 31. Rxb4 {[%emt 0:02:45]} Nxc6 {[%emt 0:00:05]} 32. dxc6 {[%emt 0:01:41]} Rxb4 {[%emt 0:00:07]} 33. c7 $2 {[%emt 0:00:30]} (33. Bxb4 Rxa6 34. c7) 33... Rb2 {[%emt 0:01:01]} 34. Rxa3 {[%emt 0:00:28]} Rxd2 {[%emt 0:00:13]} 35. c8=Q+ {[%emt 0:00:30]} Rxc8 {[%emt 0:00:28]} 36. Bxc8 {[%emt 0:00:01][%mdl 4096] Endgame KRB-KRB} Bd4 {[%emt 0:00:23]} 37. Ra4 {[%emt 0:00:23]} Bxf2+ {[%emt 0:00:14]} 38. Kf1 {[%emt 0:00:06]} d5 {[%emt 0:01:52]} 39. Bb7 {[%emt 0:00:12]} f5 {[%emt 0:00:39]} 40. Bxd5+ $2 {[%emt 0:01:31]} (40. Ra2 Rxa2 41. Bxd5+ Kg7 42. Bxa2) 40... Rxd5 {[%emt 0:00:06]} 41. Kxf2 {[%emt 0:00:04] KR-KR} Rd2+ {[%emt 0:00:11]} 42. Ke3 {[%emt 0:00:31]} (42. Kg1 $142 e3 43. Kf1) 42... Rxh2 {[%emt 0:00:11]} 43. Kf4 {[%emt 0:00:04]} Kg7 {[%emt 0:00:40]} 44. Kg5 {[%emt 0:00:44]} h6+ {[%emt 0:00:29]} 45. Kf4 {[%emt 0:00:04]} Rf2+ {[%emt 0:00:09]} 46. Ke5 {[%emt 0:00:01]} h5 {[%emt 0:00:22]} 47. Ra7+ {[%emt 0:00:30]} Kh6 {[%emt 0:00:06]} 48. Kf6 {[%emt 0:00:03]} Rb2 {[%emt 0:00:16][%cal Oh5h4] White must now prevent ...h4!} ({Worse is} 48... Rf3 49. Ra8 Kh7 50. Ra7+ Kh6 51. Ra8 $11) 49. Ra6 {[%emt 0:00:05]} h4 {[%emt 0:00:46]} 50. gxh4 {[%emt 0:00:12]} Kh5 {[%emt 0:00:16]} (50... e3 $142 51. Ra8 Kh5 52. Rh8+ Kg4 53. Rg8 Rb6+ 54. Kg7 e2 55. Re8 Rb2 56. Kh7 Kxh4 57. Kg8 f4 58. Kg7 f3 59. Kf6 Rb6+ 60. Kf7 f2 61. Re4+ Kh5 62. Re5+ g5 63. Re6 f1=Q+ 64. Ke7 e1=Q 65. Rxe1 Qxe1+ 66. Kd8 Rc6 67. Kd7 Qe6+ 68. Kd8 Rc8#) 51. Ke5 {[%emt 0:00:36]} Rg2 {[%emt 0:00:29] Threatens to win with ...e3.} 52. Kd4 {Weighted Error Value: White=0.85/Black=0.28 (precise)} 0-1

[Event "87th Spanish Championship 2022"]
[Site "Linares"]
[Date "2022.08.12"]
[Round "2.29"]
[White "Moreno Ruiz, Javier"]
[Black "Fernandez Garcia, Gumersindo"]
[Result "1-0"]
[ECO "B04"]
[WhiteElo "2428"]
[BlackElo "2160"]
[Annotator "TA"]
[PlyCount "75"]
[EventDate "2022.08.11"]
[EventType "swiss"]
[EventCountry "ESP"]
[SourceTitle "playchess.com"]
[Source "ChessBase"]
[SourceQuality "1"]
[TimeControl "5400+30"]

{[%evp 20,75,37,15,52,50,77,51,60,45,40,64,107,106,140,135,381,386,374,382,432,442,418,429,472,480,460,369,467,479,500,507,441,403,559,555,539,618,637,624,595,630,752,745,809,808,794,768,1081,1065,1053,991,1102,1033,29982,29983,6295,3155]} 1. e4 {[%emt 0:01:10][%cal Be2e4,Be4e5][%mdl 32]} Nf6 {[%emt 0:00:00][%cal Bg8f6,Bf6d5,Bd5b6][%mdl 32]} 2. e5 {[%emt 0:01:32]} Nd5 {[%emt 0:00:40]} 3. d4 d6 4. c4 {[%emt 0:02:47]} Nb6 {[%emt 0:00:41]} 5. exd6 cxd6 {[%emt 0:00:09]} 6. Nc3 {[%emt 0:07:28]} g6 7. Nf3 {[%emt 0:02:55]} Bg7 {[%emt 0:00:49]} 8. h3 {[%emt 0:01:21]} O-O {[%emt 0:00:15]} 9. Be2 {[%emt 0:00:08]} Nc6 {[%emt 0:01:56]} 10. O-O {[%emt 0:00:12]} Bf5 {[%emt 0:06:09]} 11. Bf4 {[%emt 0:03:51]} d5 {[%emt 0:14:19] B04: Alekhine's Defence: 4 Nf3.} 12. c5 {[%emt 0:01:35]} Nc4 {[%emt 0:01:09]} 13. b3 {[%emt 0:01:12] [#]} Na3 $146 {[%emt 0:01:42] White is slightly better.} ({Predecessor:} 13... N4a5 14. Rc1 Be4 15. Ne5 Nxe5 16. dxe5 Nc6 17. f3 Bf5 18. Qxd5 Qa5 19. Qc4 Rfd8 {0-1 (37) Sahin,O (2205)-Darban,M (2283) Marmaris 2019}) 14. Rc1 {[%emt 0:03:45] Inhibits Nc2.} a6 {[%emt 0:23:00][%cal Oa3b5]} 15. Qd2 Re8 {[%emt 0:19:23]} 16. Rfd1 {[%emt 0:08:15]} Be4 {[%emt 0:08:08] [#]} 17. Ne5 $1 $36 {[%emt 0:06:13][%mdl 2048] White is really pushing.} f6 $2 {[%emt 0:01:51]} (17... Bf5 $16 {was necessary.} 18. Bf3 Be6) 18. Nxc6 $18 {[%emt 0:01:20]} bxc6 {[%emt 0:00:02]} 19. Nxe4 {[%emt 0:05:38]} dxe4 {[%emt 0:00:02]} 20. Qb4 {[%emt 0:02:14]} Nb5 {[%emt 0:02:01] [#]} 21. d5 {[%emt 0:00:46]} cxd5 {[%emt 0:01:31] [#]} 22. Rxd5 $3 {[%mdl 512]} Qc8 {[%emt 0:05:07]} (22... Qxd5 $2 23. Bc4 Qxc4 24. Qxc4+ Kh8 25. Rd1) 23. Qxe4 {[%emt 0:01:38]} f5 {[%emt 0:02:15]} 24. Qc4 {[%emt 0:00:57] And now Rd8+ would win.} e6 {[%emt 0:00:11]} 25. Rd2 {[%emt 0:07:46][%cal Bd5d2,Bd2d6,Bd6b6][%mdl 32]} Kh8 {[%emt 0:00:30]} 26. a4 {[%emt 0:01:56]} Nc7 {[%emt 0:01:45]} 27. Bf3 {[%emt 0:03:56][%cal Be2f3,Bf3c6,Bc6d7][%mdl 32]} Rb8 {[%emt 0:01:22]} 28. Bc6 {[%emt 0:05:05]} Rd8 {[%emt 0:04:24] Against Bd7} 29. Rd6 {[%emt 0:01:53]} a5 {[%emt 0:01:57]} 30. Rcd1 {[%emt 0:02:21]} Rf8 {[%emt 0:02:02]} 31. Bd7 {[%emt 0:08:30] This bishop pair is nice.} Qb7 {[%emt 0:00:58]} 32. Rb6 {[%emt 0:00:19]} Qa7 {[%emt 0:00:21]} 33. Bxe6 {[%emt 0:00:25]} g5 {[%emt 0:00:49]} 34. Bd6 {[%emt 0:01:28]} Rbd8 {[%emt 0:01:22]} 35. Bd5 {[%emt 0:03:27]} ({Less strong is} 35. Bf7 Na8 $16) 35... Nxd5 {[%emt 0:00:25]} 36. Bxf8 {[%emt 0:02:34]} Nxb6 {[%emt 0:00:42]} 37. Bxg7+ {[%emt 0:00:11][%mdl 64] Remove Defender} ({And not} 37. Rxd8 Nxc4 38. Bd6+ Bf8 39. bxc4 (39. Rxf8+ Kg7 $15) 39... Qb7 $14) 37... Kxg7 {[%emt 0:00:25]} 38. Qc3+ {[%emt 0:00:07] Black got outplayed after the opening.  Weighted Error Value: White=0.07 (flawless) /Black=0.61} 1-0

[Event "87th Spanish Championship 2022"]
[Site "Linares"]
[Date "2022.08.12"]
[Round "2.30"]
[White "Garcia Garcia, Samuel"]
[Black "Garza Marco, Sergio"]
[Result "1-0"]
[ECO "A04"]
[WhiteElo "2084"]
[BlackElo "2408"]
[Annotator "TA"]
[PlyCount "121"]
[EventDate "2022.08.11"]
[EventType "swiss"]
[EventCountry "ESP"]
[SourceTitle "playchess.com"]
[Source "ChessBase"]
[SourceQuality "1"]
[TimeControl "5400+30"]

{[%evp 19,121,-10,-2,-17,0,-11,0,0,0,0,12,10,12,0,19,25,20,-48,-50,-73,-59,-70,-42,-38,-4,0,46,0,68,74,63,30,48,0,0,7,20,17,29,0,25,21,70,-13,-20,0,0,0,0,0,0,-10,-14,-33,-30,-31,0,-12,0,0,2,0,0,0,22,10,89,-55,-57,-85,-88,-183,145,155,160,161,160,159,168,174,350,357,379,352,371,371,516,434,29993,0,541,531,29994,395,420,372,29994,29995,29995,29996,29997,29998,29998,29999]} 1. Nf3 {[%emt 0:00:05]} e6 {[%emt 0:00:56]} 2. d4 {[%emt 0:00:26]} Nf6 {[%emt 0:03:03]} 3. g3 {[%emt 0:00:54]} d5 {[%emt 0:01:40]} 4. Bg2 {[%emt 0:00:53]} Be7 {[%emt 0:05:00]} 5. O-O {[%emt 0:00:36]} O-O {[%emt 0:01:31]} 6. c4 {[%emt 0:00:23]} c6 {[%emt 0:00:10]} 7. Nbd2 {[%emt 0:01:07]} b6 {[%emt 0:00:11]} 8. Qc2 {[%emt 0:03:01]} Bb7 {[%emt 0:00:29]} 9. e4 {[%emt 0:02:33]} Na6 {[%emt 0:01:12]} 10. e5 {[%emt 0:10:35]} Nd7 {[%emt 0:00:07]} 11. cxd5 {[%emt 0:00:17] E06: Closed Catalan: Early deviations.} Nb4 {[%emt 0:21:10]} 12. Qb3 {[%emt 0:04:48]} (12. Qd1 $5 {[%cal Rd5d6]} Nxd5 13. b3 $11) 12... cxd5 {[%emt 0:00:12]} 13. a3 {[%emt 0:16:13] The position is equal.} Nc6 {[%emt 0:00:05]} 14. Rd1 {[%emt 0:00:19] [#]} Rc8 $146 {[%emt 0:09:38]} ({Predecessor:} 14... Na5 15. Qe3 Ba6 16. h4 Rc8 17. Bf1 Bxf1 18. Nxf1 b5 19. b3 b4 20. axb4 Bxb4 {½-½ (74) Silva,M (2207)-Ferreira,J (2512) Viseu 2022}) 15. Qd3 {[%emt 0:05:47]} a5 {[%emt 0:02:01]} 16. Nf1 {[%emt 0:02:28]} a4 {[%emt 0:02:18]} 17. Bd2 {[%emt 0:04:05]} Na5 {[%emt 0:01:14]} 18. Ne3 {[%emt 0:13:28]} ({White should try} 18. Bxa5 $11 bxa5 19. Ne3) 18... Nb3 $15 {[%emt 0:00:53]} 19. Rab1 {[%emt 0:00:29]} Nb8 $1 {[%emt 0:01:49] Threatens to win with ...Ba6.} 20. Qb5 {[%emt 0:03:29]} Bc6 {[%emt 0:01:06]} (20... Qe8 $5 {[%cal Re8b5]} 21. Bf1 (21. Qxb6 Ba6 $17) 21... Ba6 22. Qxe8 (22. Qxb6 Bd8 $17) 22... Rfxe8 $15) 21. Qd3 {[%emt 0:00:14]} Be8 {[%emt 0:07:01]} 22. Bc3 {[%emt 0:02:12]} f6 {[%emt 0:03:09]} (22... Qd7 $11) 23. Bh3 {[%emt 0:05:45]} (23. exf6 $14 gxf6 24. Bh3) 23... Rc6 {[%emt 0:01:22]} (23... f5 $1 $11) 24. exf6 $14 {[%emt 0:02:33]} Bxf6 {[%emt 0:00:02]} 25. Qe2 {[%emt 0:03:36]} Bg6 {[%emt 0:02:01]} 26. Nc2 {[%emt 0:01:02]} (26. Qb5 $5 {[%cal Rb5a4]}) 26... Kh8 {[%emt 0:00:20]} 27. Nb4 {[%emt 0:02:33]} Bxb1 {[%emt 0:09:13]} 28. Rxb1 {[%emt 0:01:16]} Rd6 {[%emt 0:00:41]} 29. Ne5 {[%emt 0:01:24]} Qe8 {[%emt 0:00:58]} (29... Qe7 $5 {[%cal Rf6e5]}) 30. Re1 {[%emt 0:01:43]} Na5 {[%emt 0:06:05]} (30... Bxe5 $11 {feels stronger.} 31. Qxe5 Qd8) 31. Qc2 {[%emt 0:04:19] 0x0.001b841cd396dp-1022s more active pieces. The black rooks are badly placed.} ({Better is} 31. Nbd3 $1 $14) 31... Bxe5 $11 {[%emt 0:01:22]} 32. Rxe5 {[%emt 0:00:45]} Nc4 {[%emt 0:00:15]} 33. Re1 {[%emt 0:00:58]} Rf6 {[%emt 0:01:10]} 34. f4 {[%emt 0:01:35]} g6 {[%emt 0:04:24] Against f5} 35. Bf1 {[%emt 0:00:48] aiming for Bxc4.} b5 {[%emt 0:01:06]} 36. Bg2 {[%emt 0:00:37][%cal Ob4d5]} Qc8 {[%emt 0:01:05]} 37. Qe2 {[%emt 0:00:42]} Kg8 {[%emt 0:00:35]} 38. Nd3 {[%emt 0:01:23]} Nd7 {[%emt 0:03:26]} 39. Ne5 {[%emt 0:00:54]} Rb6 {[%emt 0:01:37]} 40. Ng4 {[%emt 0:00:20]} Rf8 {[%emt 0:00:01]} 41. Bb4 {[%emt 0:00:35]} Rc6 {[%emt 0:02:52]} 42. Bh3 {[%emt 0:02:40]} Re8 {[%emt 0:00:51] [#]} (42... Qc7 $11) 43. Bg2 {[%emt 0:00:49]} (43. f5 $1 $16 {[%cal Rf5e6]}) 43... Nd6 $15 {[%emt 0:02:22]} 44. Bxd6 {[%emt 0:01:15]} Rxd6 {[%emt 0:00:01]} 45. Qxb5 {[%emt 0:00:08]} (45. Qd2 $17 {was worth a try.}) 45... Rb6 $2 {[%emt 0:00:53] [#]} (45... Qc4 $19 46. Qxc4 dxc4) 46. Qxd7 $16 {[%emt 0:00:07][%mdl 576] Remove Defender, Decoy. Black is now going downhill.} Qxd7 {[%emt 0:00:17]} 47. Nf6+ {[%emt 0:00:01]} Kf7 {[%emt 0:00:22]} 48. Nxd7 {[%emt 0:00:10]} Rxb2 {[%emt 0:00:02]} 49. Nc5 {[%emt 0:00:45][%cal Oc5e6] And now Nxe6! would win.} Ra2 $2 {[%emt 0:01:33] [#]} (49... Rd2 {might work better.} 50. Nxa4 Rxd4) 50. Nxe6 $1 $18 {[%emt 0:00:53][%mdl 512]} Kf6 {[%emt 0:01:28]} (50... Re7 51. Bxd5) 51. Bxd5 {[%emt 0:00:09]} Rxa3 {[%emt 0:00:01]} 52. g4 {[%emt 0:00:08] Strongly threatening g5+.} Rb8 {[%emt 0:01:09]} 53. Ng5 {[%emt 0:01:06]} Rb2 {[%emt 0:03:19]} (53... Rb6 $18 54. Ne4+ Ke7 55. Nd2+ Kd6) 54. Nxh7+ {[%emt 0:01:10]} (54. Re6+ $142 Kg7 55. Re7+ Kf8 56. Rf7+ Kg8 57. Rd7+ Kf8 58. Nxh7+ Ke8 59. Nf6+ Kf8 60. Rf7#) 54... Kg7 {[%emt 0:00:03]} 55. Ng5 {[%emt 0:00:43] Intending Re7+ and mate.} Rd3 {[%emt 0:01:02]} 56. h4 $2 {[%emt 0:00:34]} (56. Re7+ {mates} Kf8 57. Rf7+ Kg8 58. Rd7+ Kf8 59. Nh7+ Ke8 60. Nf6+ Kf8 61. Rf7#) 56... Rg3+ {[%emt 0:00:18]} 57. Kf1 {[%emt 0:00:23] White wants to mate with Re7+.} Rxg4 $2 {[%emt 0:00:01]} (57... Rc3 $18 58. f5 gxf5 59. gxf5 Rcc2 60. Re7+ Kf8) 58. Re7+ {[%emt 0:00:40] White mates.} Kf8 {[%emt 0:00:18]} 59. Rf7+ {[%emt 0:00:11]} Ke8 {[%emt 0:00:20]} 60. Bc6+ {[%emt 0:00:05]} Kd8 {[%emt 0:00:09]} 61. Ne6+ {[%emt 0:00:53] Weighted Error Value: White=0.47/Black=0.74} 1-0

[Event "87th Spanish Championship 2022"]
[Site "Linares"]
[Date "2022.08.12"]
[Round "2.31"]
[White "Lobo Pereira, Arami"]
[Black "Medarde Santiago, Luis Marcos"]
[Result "0-1"]
[ECO "E71"]
[WhiteElo "1910"]
[BlackElo "2330"]
[Annotator "TA"]
[PlyCount "136"]
[EventDate "2022.08.11"]
[EventType "swiss"]
[EventCountry "ESP"]
[SourceTitle "playchess.com"]
[Source "ChessBase"]
[SourceQuality "1"]
[TimeControl "5400+30"]

{[%evp 13,136,30,37,40,48,49,60,37,41,29,34,60,46,36,61,33,31,27,30,35,32,-20,11,-79,0,0,0,0,15,14,18,18,113,40,138,43,98,0,285,0,0,0,119,0,38,20,79,0,129,110,103,7,7,7,8,0,0,0,0,0,8,0,0,0,9,8,10,0,0,0,0,0,8,0,7,0,13,0,0,0,0,-33,0,0,0,0,0,0,0,0,0,0,4,0,0,0,65,0,0,0,0,0,0,0,0,0,-7,-77,-77,-194,-180,-182,-168,-242,-240,-224,-233,-221,-230,-228,-185,-266,-100,-29988,-29989]} 1. d4 {[%emt 0:00:14]} Nf6 {[%emt 0:00:02]} 2. c4 {[%emt 0:00:50]} g6 {[%emt 0:00:08]} 3. Nc3 {[%emt 0:00:21]} Bg7 4. e4 {[%emt 0:00:13]} d6 {[%emt 0:00:14]} 5. h3 {[%emt 0:00:39]} O-O {[%emt 0:00:42]} 6. Be3 {[%emt 0:00:30]} e5 {[%emt 0:02:52]} 7. d5 {[%emt 0:00:13]} Na6 {[%emt 0:01:17]} 8. g4 {[%emt 0:00:59] E71: King's Indian: 4 e4 d6 5 h3.} Nc5 {[%emt 0:01:15]} 9. f3 {[%emt 0:00:16]} a5 {[%emt 0:02:06]} 10. Nge2 {[%emt 0:00:47] White is slightly better.} c6 {[%emt 0:12:09]} 11. Qd2 {[%emt 0:02:10]} cxd5 12. cxd5 {[%emt 0:08:06]} Bd7 {[%emt 0:09:08]} 13. Ng3 {[%emt 0:00:30]} h5 {[%emt 0:06:21]} 14. gxh5 {[%emt 0:08:41]} Nxh5 {[%emt 0:00:30]} 15. Nxh5 {[%emt 0:00:43]} Qh4+ 16. Qf2 {[%emt 0:01:11]} Qxh5 {[%emt 0:01:56]} 17. Be2 {[%emt 0:17:53] [#]} (17. Bxc5 $14 dxc5 18. O-O-O) 17... f5 $146 ({Predecessor:} 17... Bf6 18. O-O-O Qh4 19. Qg2 Kh7 20. Kb1 Rfb8 21. Bb5 Bc8 22. Bxc5 dxc5 23. d6 Be6 {1-0 (33) Papp,P (2336)-Ocelak,J (2210) Chess.com INT 2021}) 18. O-O-O (18. Qg2 $11) 18... Na4 {[%emt 0:22:32]} (18... Rac8 $17 {...b5 is the strong threat.} 19. Qg2 f4 20. Bxc5 Rxc5) 19. Nxa4 {[%emt 0:04:58]} (19. f4 $2 Qh7 20. exf5 Nxc3 21. bxc3 Bxf5 $19) 19... Bxa4 {[%emt 0:00:03]} 20. b3 {[%emt 0:00:10]} Bd7 {[%emt 0:02:03]} 21. Qg2 {[%emt 0:08:39]} f4 {[%emt 0:08:25]} 22. Bb6 {[%emt 0:01:40] aiming for a4.} Bf6 {[%emt 0:00:52]} (22... a4 $11) 23. Kb2 {[%emt 0:01:20]} (23. a4 $1 $16) 23... Rfc8 {[%emt 0:00:56]} (23... a4 $1 $14) 24. Rdg1 {[%emt 0:02:28]} (24. a4 $1 $16) 24... Kf7 {[%emt 0:00:17]} (24... a4 $1 $14) 25. Qf1 {[%emt 0:02:42]} (25. a4 $1 $16) 25... Bd8 $2 {[%emt 0:05:04][%mdl 8192]} (25... a4 $11 {and Black stays safe.}) 26. Qf2 $2 {[%emt 0:14:45]} (26. Bxd8 $18 Rxd8 27. h4) 26... Bh4 $11 {[%emt 0:05:20]} 27. Qf1 {[%emt 0:00:21]} Qh8 {[%emt 0:03:42]} (27... a4 $11) 28. a3 {[%emt 0:04:01]} (28. Qg2 $16 Bg3 29. a4) 28... Bd8 {[%emt 0:01:30]} (28... a4 $5 {[%cal Ra4b3]}) 29. Bf2 {[%emt 0:01:07] And now Bb5 would win.} Bh4 {[%emt 0:02:34] [#]} (29... Qe8 $11) 30. Bb6 {[%emt 0:00:39]} (30. Qg2 Bxf2 31. Qxf2 Rc5 $14) ({Better is} 30. a4 $1 $16) 30... Qf6 {[%emt 0:00:49]} (30... Bd8 $11 {remains equal.} 31. Bxd8 Qxd8) 31. Bb5 $16 {[%emt 0:03:09]} Qe7 {[%emt 0:00:34]} 32. Qd3 {[%emt 0:01:04]} (32. a4 $16) 32... Bxb5 $11 {[%emt 0:09:21]} 33. Qxb5 {[%emt 0:00:02]} Qe8 $132 {[%emt 0:01:13][%mdl 2048] Black is not holding back} 34. Qxe8+ {[%emt 0:00:39]} (34. a4 {is more complex.} Ra6 35. Bd4 Rb8 36. Rg4) 34... Rxe8 {[%emt 0:00:10]} 35. Rc1 {[%emt 0:00:25] Strongly threatening Rc7+.} Ra6 {[%emt 0:02:14]} 36. Bg1 {[%emt 0:01:36]} Raa8 {[%emt 0:00:51]} 37. Bb6 {[%emt 0:00:16] Black must now prevent Rc7+.} Ra6 {[%emt 0:00:25]} 38. Bg1 {[%emt 0:00:07]} Bd8 {[%emt 0:01:20]} 39. Bf2 {[%emt 0:01:37] With the idea Rc8.} Ra8 {[%emt 0:00:19] Against Rc8} 40. Rc2 {[%emt 0:00:41]} Rh8 {[%emt 0:00:05]} 41. a4 {[%emt 0:00:42]} Ke8 {[%emt 0:00:37]} 42. Rg1 {[%emt 0:01:25]} Rh6 {[%emt 0:00:51]} 43. Rh1 {[%emt 0:01:27]} Kd7 {[%emt 0:00:04]} 44. Rcc1 {[%emt 0:00:28]} Bc7 {[%emt 0:00:19]} 45. Rh2 {[%emt 0:00:19]} Rah8 {[%emt 0:00:13]} 46. Rch1 {[%emt 0:00:04]} Bd8 {[%emt 0:00:34]} 47. Kc2 {[%emt 0:00:26]} Bf6 {[%emt 0:00:29]} (47... Bh4 $5 {[%cal Rh4f2]} 48. Bb6 Bg3 $11) 48. Kd2 {[%emt 0:00:34]} Rb8 {[%emt 0:00:28]} 49. Ba7 {[%emt 0:00:29]} Ra8 {[%emt 0:00:21]} 50. Bb6 {[%emt 0:01:22]} Ra6 {[%emt 0:01:26]} 51. Bf2 {[%emt 0:00:13]} Bd8 {[%emt 0:00:25]} 52. Rg2 {[%emt 0:00:23]} Ra8 {[%emt 0:00:42]} 53. Kc3 {[%emt 0:04:08]} Rc8+ {[%emt 0:00:08]} 54. Kd3 {[%emt 0:00:23]} Bc7 {[%emt 0:00:12]} (54... g5 $11) 55. Kd2 {[%emt 0:00:27]} (55. h4 $1 $14) 55... Rch8 {[%emt 0:00:11]} 56. Ke2 {[%emt 0:01:42]} Ke8 {[%emt 0:00:32]} 57. Rgh2 {[%emt 0:00:41]} Kd7 {[%emt 0:00:51]} 58. Rg2 {[%emt 0:00:17]} Bd8 {[%emt 0:01:00]} 59. Rgh2 {[%emt 0:00:30]} Bh4 {[%emt 0:00:36] next ...Bxf2 is good for Black.} 60. Bxh4 {[%emt 0:03:13]} (60. Bb6 $1 $11) 60... Rxh4 {[%emt 0:00:01][%mdl 4096] Endgame KRR-KRR} 61. Kf2 {[%emt 0:00:05]} (61. Kd3 $17) 61... Rc8 $19 {[%emt 0:00:16]} 62. Rb1 {[%emt 0:00:40] [#]} Rh5 $1 {[%emt 0:00:54]} 63. Rb2 {[%emt 0:00:21]} (63. b4 $142) 63... Rc3 {[%emt 0:00:21]} 64. h4 {[%emt 0:00:47]} g5 {[%emt 0:00:12]} 65. b4 {[%emt 0:01:18]} axb4 {[%emt 0:00:12]} ({And not} 65... gxh4 66. bxa5 Kd8 67. Rg2 $11 (67. Rxb7 $2 Rc2+ 68. Kf1 Rxh2 $19)) (65... Rxh4 66. Rxh4 gxh4 67. bxa5 $11) 66. Rxb4 {[%emt 0:00:02]} Kc7 {[%emt 0:00:59]} ({Not} 66... Rxh4 67. Rxb7+ Kd8 68. Rxh4 gxh4 69. Rh7 $11) 67. Kg2 {[%emt 0:00:18]} (67. Rg2 {is a better defense.}) 67... gxh4 $2 {[%emt 0:01:04]} ({Don't blunder} 67... Rxh4 $2 68. Rxh4 gxh4 69. Rb2 $19) (67... Rc2+ $19 68. Kg1 Rxh2 69. Kxh2 Rxh4+ 70. Kg1 g4) 68. Kf2 $2 {[%emt 0:00:09][%mdl 8192]} (68. Kh3 $17 Rh7 69. Kg4) 68... Rc2+ {[%emt 0:00:04] Weighted Error Value: White=0.30/Black=0.32} 0-1